[Event "January 9 Late 2024"]
[Site "https://www.chess.com"]
[Date "2024.01.09"]
[Round "7"]
[White "Gledura, Benjamin"]
[Black "Theodorou, Nikolas"]
[Result "0-1"]
[Board "13"]
[TimeControl "180+1"]
[WhiteFideId "712779"]
[BlackFideId "4262875"]
[WhiteElo "2901"]
[BlackElo "3034"]
[WhiteTeam "HUN"]
[BlackTeam "GRE"]
[WhiteClock "0:00:03"]
[BlackClock "0:01:04"]

1. d4 {[%clk 0:03:00]}  b6 {[%clk 0:03:00]} 2. e4 {[%clk 0:03:00]}  Bb7 {[%clk 0:03:01]} 3. Bd3 {[%clk 0:03:00]}  d6 {[%clk 0:03:02]} 4. Nf3 {[%clk 0:02:59]}  Nd7 {[%clk 0:03:03]} 5. O-O {[%clk 0:02:59]}  e5 {[%clk 0:03:04]} 6. c3 {[%clk 0:02:59]}  Ngf6 {[%clk 0:03:04]} 7. Re1 {[%clk 0:02:59]}  g6 {[%clk 0:03:05]} 8. Nbd2 {[%clk 0:02:59]}  Bg7 {[%clk 0:03:06]} 9. Nf1 {[%clk 0:02:59]}  O-O {[%clk 0:03:06]} 10. Ng3 {[%clk 0:03:00]}  Re8 {[%clk 0:03:07]} 11. h3 {[%clk 0:02:56]}  d5 {[%clk 0:03:08]} 12. Bg5 {[%clk 0:02:48]}  h6 {[%clk 0:02:35]} 13. Bxf6 {[%clk 0:02:41]}  Qxf6 {[%clk 0:02:36]} 14. Qa4 {[%clk 0:02:40]}  Bc6 {[%clk 0:02:12]} 15. Qc2 {[%clk 0:02:38]}  Rad8 {[%clk 0:02:06]} 16. exd5 {[%clk 0:02:32]}  Bxd5 {[%clk 0:02:07]} 17. Be4 {[%clk 0:02:32]}  c6 {[%clk 0:01:57]} 18. Bxd5 {[%clk 0:02:30]}  cxd5 {[%clk 0:01:58]} 19. dxe5 {[%clk 0:02:31]}  Nxe5 {[%clk 0:01:59]} 20. Nxe5 {[%clk 0:02:29]}  Rxe5 {[%clk 0:01:59]} 21. Rxe5 {[%clk 0:02:24]}  Qxe5 {[%clk 0:02:00]} 22. Ne2 {[%clk 0:02:22]}  Qe4 {[%clk 0:02:01]} 23. Qd2 {[%clk 0:02:20]}  Qc4 {[%clk 0:01:50]} 24. a3 {[%clk 0:02:14]}  a5 {[%clk 0:01:50]} 25. Rd1 {[%clk 0:02:13]}  a4 {[%clk 0:01:48]} 26. Qd3 {[%clk 0:02:04]}  Re8 {[%clk 0:01:42]} 27. Kf1 {[%clk 0:02:00]}  Qa2 {[%clk 0:01:26]} 28. Qb5 {[%clk 0:01:56]}  Re6 {[%clk 0:01:20]} 29. Nf4 {[%clk 0:01:37]}  Rd6 {[%clk 0:01:17]} 30. Nxd5 {[%clk 0:01:35]}  Kh7 {[%clk 0:01:17]} 31. g3 {[%clk 0:01:13]}  h5 {[%clk 0:01:15]} 32. h4 {[%clk 0:01:13]}  Rd8 {[%clk 0:01:16]} 33. Kg2 {[%clk 0:01:11]}  Rd6 {[%clk 0:01:16]} 34. Qe8 {[%clk 0:00:03]}  Qb3 {[%clk 0:01:04]} 0-1

[Event "January 9 Late 2024"]
[Site "https://www.chess.com"]
[Date "2024.01.09"]
[Round "7"]
[White "Martinez Alcantara, Jose Eduardo"]
[Black "Melkumyan, Hrant"]
[Result "1-0"]
[Board "14"]
[TimeControl "180+1"]
[WhiteFideId "3805662"]
[BlackFideId "13302485"]
[WhiteElo "3009"]
[BlackElo "2898"]
[WhiteTeam "PER"]
[BlackTeam "ARM"]
[WhiteClock "0:00:05"]
[BlackClock "0:00:00"]

1. e4 {[%clk 0:03:00]}  e5 {[%clk 0:03:00]} 2. Nf3 {[%clk 0:03:00]}  Nc6 {[%clk 0:03:00]} 3. Bb5 {[%clk 0:03:01]}  Nf6 {[%clk 0:03:01]} 4. d3 {[%clk 0:03:00]}  d6 {[%clk 0:03:01]} 5. c3 {[%clk 0:03:00]}  Be7 {[%clk 0:03:02]} 6. O-O {[%clk 0:03:00]}  O-O {[%clk 0:03:02]} 7. h3 {[%clk 0:03:01]}  Re8 {[%clk 0:03:01]} 8. Nbd2 {[%clk 0:03:01]}  Bf8 {[%clk 0:03:01]} 9. Re1 {[%clk 0:03:01]}  a6 {[%clk 0:03:01]} 10. Ba4 {[%clk 0:03:02]}  b5 {[%clk 0:03:00]} 11. Bb3 {[%clk 0:03:02]}  Be6 {[%clk 0:03:00]} 12. Bxe6 {[%clk 0:02:58]}  Rxe6 {[%clk 0:02:59]} 13. Nf1 {[%clk 0:02:57]}  d5 {[%clk 0:02:57]} 14. Qe2 {[%clk 0:02:58]}  h6 {[%clk 0:02:55]} 15. Ng3 {[%clk 0:02:57]}  Qd7 {[%clk 0:02:54]} 16. Be3 {[%clk 0:02:54]}  Rd8 {[%clk 0:02:52]} 17. Rad1 {[%clk 0:02:54]}  g6 {[%clk 0:02:48]} 18. Bc1 {[%clk 0:02:41]}  Kh7 {[%clk 0:02:41]} 19. Qc2 {[%clk 0:02:27]}  Rd6 {[%clk 0:02:33]} 20. Rd2 {[%clk 0:02:19]}  dxe4 {[%clk 0:02:27]} 21. dxe4 {[%clk 0:02:20]}  Rxd2 {[%clk 0:02:28]} 22. Bxd2 {[%clk 0:02:20]}  Bc5 {[%clk 0:02:20]} 23. Bc1 {[%clk 0:02:18]}  Kg7 {[%clk 0:02:16]} 24. Qe2 {[%clk 0:02:16]}  Qd3 {[%clk 0:02:11]} 25. Qxd3 {[%clk 0:02:12]}  Rxd3 {[%clk 0:02:12]} 26. Kf1 {[%clk 0:02:13]}  Rd8 {[%clk 0:02:09]} 27. Ke2 {[%clk 0:02:11]}  a5 {[%clk 0:02:06]} 28. Bd2 {[%clk 0:02:03]}  a4 {[%clk 0:02:06]} 29. Rb1 {[%clk 0:01:56]}  Nd7 {[%clk 0:02:02]} 30. Ne1 {[%clk 0:01:48]}  Nb6 {[%clk 0:01:59]} 31. Nd3 {[%clk 0:01:44]}  Bd6 {[%clk 0:01:57]} 32. Nf1 {[%clk 0:01:43]}  Nc4 {[%clk 0:01:55]} 33. b3 {[%clk 0:01:39]}  axb3 {[%clk 0:01:52]} 34. axb3 {[%clk 0:01:40]}  Nxd2 {[%clk 0:01:52]} 35. Nxd2 {[%clk 0:01:40]}  Ra8 {[%clk 0:01:53]} 36. b4 {[%clk 0:01:35]}  Ra2 {[%clk 0:01:49]} 37. Rb2 {[%clk 0:01:32]}  Ra1 {[%clk 0:01:49]} 38. Nf1 {[%clk 0:01:12]}  f5 {[%clk 0:01:46]} 39. Ne3 {[%clk 0:00:58]}  fxe4 {[%clk 0:01:32]} 40. Ne1 {[%clk 0:00:57]}  Ne7 {[%clk 0:01:17]} 41. N1c2 {[%clk 0:00:49]}  Ra8 {[%clk 0:01:12]} 42. Rb3 {[%clk 0:00:32]}  Kf7 {[%clk 0:01:11]} 43. Ra3 {[%clk 0:00:27]}  Rxa3 {[%clk 0:01:11]} 44. Nxa3 {[%clk 0:00:28]}  c6 {[%clk 0:01:11]} 45. Nb1 {[%clk 0:00:28]}  Nd5 {[%clk 0:01:08]} 46. Nd1 {[%clk 0:00:28]}  c5 {[%clk 0:00:59]} 47. bxc5 {[%clk 0:00:25]}  Bxc5 {[%clk 0:01:00]} 48. Nd2 {[%clk 0:00:25]}  Nf4+ {[%clk 0:00:51]} 49. Kf1 {[%clk 0:00:25]}  e3 {[%clk 0:00:51]} 50. fxe3 {[%clk 0:00:25]}  Nd5 {[%clk 0:00:49]} 51. Ke2 {[%clk 0:00:25]}  Nb6 {[%clk 0:00:40]} 52. Nb2 {[%clk 0:00:23]}  Ke6 {[%clk 0:00:39]} 53. Nd3 {[%clk 0:00:22]}  Be7 {[%clk 0:00:39]} 54. Nb2 {[%clk 0:00:13]}  Na4 {[%clk 0:00:36]} 55. Nd1 {[%clk 0:00:13]}  Kd5 {[%clk 0:00:36]} 56. e4+ {[%clk 0:00:14]}  Kc6 {[%clk 0:00:34]} 57. Kd3 {[%clk 0:00:14]}  Nc5+ {[%clk 0:00:32]} 58. Kc2 {[%clk 0:00:14]}  Bg5 {[%clk 0:00:33]} 59. Nf3 {[%clk 0:00:15]}  Bf4 {[%clk 0:00:28]} 60. Nf2 {[%clk 0:00:14]}  h5 {[%clk 0:00:26]} 61. Nd3 {[%clk 0:00:13]}  Nxd3 {[%clk 0:00:16]} 62. Kxd3 {[%clk 0:00:14]}  Bg3 {[%clk 0:00:17]} 63. Ng1 {[%clk 0:00:12]}  Kd6 {[%clk 0:00:16]} 64. Ne2 {[%clk 0:00:12]}  Bf2 {[%clk 0:00:16]} 65. Nc1 {[%clk 0:00:10]}  Ba7 {[%clk 0:00:16]} 66. Kd2 {[%clk 0:00:07]}  Bb6 {[%clk 0:00:17]} 67. Nd3 {[%clk 0:00:07]}  Ba7 {[%clk 0:00:16]} 68. Kc2 {[%clk 0:00:07]}  Bb6 {[%clk 0:00:15]} 69. Kb2 {[%clk 0:00:08]}  Ba5 {[%clk 0:00:15]} 70. Kb3 {[%clk 0:00:08]}  h4 {[%clk 0:00:07]} 71. c4 {[%clk 0:00:06]}  bxc4+ {[%clk 0:00:06]} 72. Kxc4 {[%clk 0:00:07]}  Bb6 {[%clk 0:00:07]} 73. Ne1 {[%clk 0:00:06]}  Ba7 {[%clk 0:00:05]} 74. Nf3 {[%clk 0:00:07]}  Bf2 {[%clk 0:00:06]} 75. Kd3 {[%clk 0:00:07]}  Ke6 {[%clk 0:00:06]} 76. Nd2 {[%clk 0:00:05]}  Bg3 {[%clk 0:00:06]} 77. Ke2 {[%clk 0:00:05]}  Bf4 {[%clk 0:00:06]} 78. Nc4 {[%clk 0:00:05]}  Kf6 {[%clk 0:00:06]} 79. Kf3 {[%clk 0:00:06]}  Bg3 {[%clk 0:00:05]} 80. Nb6 {[%clk 0:00:06]}  Be1 {[%clk 0:00:05]} 81. Nd5+ {[%clk 0:00:06]}  Kg5 {[%clk 0:00:05]} 82. Nb6 {[%clk 0:00:04]}  Ba5 {[%clk 0:00:06]} 83. Nd7 {[%clk 0:00:03]}  Bc7 {[%clk 0:00:05]} 84. Ke3 {[%clk 0:00:03]}  Bd6 {[%clk 0:00:05]} 85. Kf3 {[%clk 0:00:04]}  Bc7 {[%clk 0:00:06]} 86. Nc5 {[%clk 0:00:05]}  Bd6 {[%clk 0:00:05]} 87. Na4 {[%clk 0:00:06]}  Bb4 {[%clk 0:00:05]} 88. Nb6 {[%clk 0:00:06]}  Bd6 {[%clk 0:00:05]} 89. Nc4 {[%clk 0:00:06]}  Bc7 {[%clk 0:00:05]} 90. Nd2 {[%clk 0:00:05]}  Bd6 {[%clk 0:00:05]} 91. Nb3 {[%clk 0:00:04]}  Bb4 {[%clk 0:00:05]} 92. Nc1 {[%clk 0:00:04]}  Bc5 {[%clk 0:00:05]} 93. Nd3 {[%clk 0:00:04]}  Bd6 {[%clk 0:00:06]} 94. Nb2 {[%clk 0:00:03]}  Bc5 {[%clk 0:00:06]} 95. Nc4 {[%clk 0:00:04]}  Bd4 {[%clk 0:00:05]} 96. Nd6 {[%clk 0:00:04]}  Bb2 {[%clk 0:00:04]} 97. Nf7+ {[%clk 0:00:03]}  Kh5 {[%clk 0:00:04]} 98. Nd8 {[%clk 0:00:04]}  Kg5 {[%clk 0:00:04]} 99. Ne6+ {[%clk 0:00:04]}  Kh5 {[%clk 0:00:05]} 100. Ke2 {[%clk 0:00:03]}  Ba1 {[%clk 0:00:04]} 101. Kd3 {[%clk 0:00:03]}  g5 {[%clk 0:00:02]} 102. Ng7+ {[%clk 0:00:01]}  Kg6 {[%clk 0:00:02]} 103. Nf5 {[%clk 0:00:02]}  Kh5 {[%clk 0:00:02]} 104. Ne3 {[%clk 0:00:02]}  Bd4 {[%clk 0:00:02]} 105. Ng4 {[%clk 0:00:03]}  Kg6 {[%clk 0:00:02]} 106. Kc4 {[%clk 0:00:04]}  Ba1 {[%clk 0:00:00]} 107. Kd5 {[%clk 0:00:05]} 1-0

[Event "January 9 Late 2024"]
[Site "https://www.chess.com"]
[Date "2024.01.09"]
[Round "7"]
[White "Christiansen, Johan-Sebastian"]
[Black "Grischuk, Alexander"]
[Result "0-1"]
[Board "21"]
[TimeControl "180+1"]
[WhiteFideId "1512668"]
[BlackFideId "4126025"]
[WhiteElo "2905"]
[BlackElo "3047"]
[WhiteTeam "NOR"]
[BlackTeam "RUS"]
[WhiteClock "0:01:04"]
[BlackClock "0:01:11"]

1. e4 {[%clk 0:03:00]}  e5 {[%clk 0:03:00]} 2. Nf3 {[%clk 0:03:01]}  Nc6 {[%clk 0:03:00]} 3. d4 {[%clk 0:03:02]}  exd4 {[%clk 0:03:01]} 4. Nxd4 {[%clk 0:03:03]}  Qf6 {[%clk 0:03:02]} 5. Ne2 {[%clk 0:03:03]}  Bb4+ {[%clk 0:03:01]} 6. Nbc3 {[%clk 0:03:02]}  Nge7 {[%clk 0:03:00]} 7. a3 {[%clk 0:03:02]}  Ba5 {[%clk 0:02:53]} 8. Be3 {[%clk 0:02:35]}  O-O {[%clk 0:02:48]} 9. b4 {[%clk 0:02:24]}  Bb6 {[%clk 0:02:47]} 10. Bxb6 {[%clk 0:02:24]}  axb6 {[%clk 0:02:37]} 11. Nd5 {[%clk 0:02:24]}  Nxd5 {[%clk 0:02:35]} 12. exd5 {[%clk 0:02:25]}  Nxb4 {[%clk 0:02:33]} 13. c3 {[%clk 0:02:19]}  Na6 {[%clk 0:02:31]} 14. Qd4 {[%clk 0:02:17]}  Qe7 {[%clk 0:02:04]} 15. d6 {[%clk 0:02:09]}  cxd6 {[%clk 0:02:05]} 16. O-O-O {[%clk 0:01:43]}  d5 {[%clk 0:02:01]} 17. Kb2 {[%clk 0:01:41]}  Nc7 {[%clk 0:01:25]} 18. Qb4 {[%clk 0:01:39]}  Qc5 {[%clk 0:01:25]} 19. Nf4 {[%clk 0:01:35]}  d6 {[%clk 0:01:23]} 20. Nd3 {[%clk 0:01:30]}  Qc6 {[%clk 0:01:18]} 21. h4 {[%clk 0:01:21]}  Be6 {[%clk 0:01:15]} 22. Qd4 {[%clk 0:01:11]}  Nb5 {[%clk 0:01:13]} 23. Qf4 {[%clk 0:01:04]}  Qxc3+ {[%clk 0:01:11]} 0-1

[Event "January 9 Late 2024"]
[Site "https://www.chess.com"]
[Date "2024.01.09"]
[Round "7"]
[White "Caruana, Fabiano"]
[Black "Livaic, Leon"]
[Result "1-0"]
[Board "23"]
[TimeControl "180+1"]
[WhiteFideId "2020009"]
[BlackFideId "14531534"]
[WhiteElo "3014"]
[BlackElo "2892"]
[WhiteTeam "USA"]
[BlackTeam "CRO"]
[WhiteClock "0:00:03"]
[BlackClock "0:00:00"]

1. c4 {[%clk 0:02:54]}  Nf6 {[%clk 0:02:57]} 2. Nc3 {[%clk 0:02:53]}  g6 {[%clk 0:02:57]} 3. g3 {[%clk 0:02:53]}  Bg7 {[%clk 0:02:57]} 4. Bg2 {[%clk 0:02:53]}  O-O {[%clk 0:02:58]} 5. Nf3 {[%clk 0:02:54]}  d6 {[%clk 0:02:59]} 6. O-O {[%clk 0:02:54]}  e5 {[%clk 0:02:59]} 7. d3 {[%clk 0:02:55]}  Nc6 {[%clk 0:02:55]} 8. Rb1 {[%clk 0:02:55]}  a5 {[%clk 0:02:55]} 9. a3 {[%clk 0:02:55]}  h6 {[%clk 0:02:56]} 10. b4 {[%clk 0:02:55]}  axb4 {[%clk 0:02:57]} 11. axb4 {[%clk 0:02:55]}  Be6 {[%clk 0:02:57]} 12. b5 {[%clk 0:02:56]}  Ne7 {[%clk 0:02:58]} 13. Ne1 {[%clk 0:02:54]}  Rb8 {[%clk 0:02:57]} 14. Nc2 {[%clk 0:02:54]}  Qd7 {[%clk 0:02:54]} 15. e4 {[%clk 0:02:48]}  Bh3 {[%clk 0:02:48]} 16. f4 {[%clk 0:02:40]}  Bxg2 {[%clk 0:02:45]} 17. Kxg2 {[%clk 0:02:41]}  exf4 {[%clk 0:02:41]} 18. Bxf4 {[%clk 0:02:40]}  Nh7 {[%clk 0:02:24]} 19. Bd2 {[%clk 0:02:35]}  Ng5 {[%clk 0:02:24]} 20. Bxg5 {[%clk 0:02:20]}  hxg5 {[%clk 0:02:24]} 21. d4 {[%clk 0:02:20]}  f5 {[%clk 0:02:08]} 22. h3 {[%clk 0:02:06]}  Rbe8 {[%clk 0:01:35]} 23. Qd3 {[%clk 0:02:01]}  c6 {[%clk 0:01:31]} 24. Rbe1 {[%clk 0:01:48]}  Kh8 {[%clk 0:01:25]} 25. Re2 {[%clk 0:01:38]}  fxe4 {[%clk 0:01:15]} 26. Rxf8+ {[%clk 0:01:34]}  Rxf8 {[%clk 0:01:15]} 27. Nxe4 {[%clk 0:01:15]}  d5 {[%clk 0:01:06]} 28. Nc5 {[%clk 0:01:02]}  Qf5 {[%clk 0:00:51]} 29. Qxf5 {[%clk 0:00:59]}  Nxf5 {[%clk 0:00:51]} 30. cxd5 {[%clk 0:00:41]}  cxd5 {[%clk 0:00:36]} 31. Nxb7 {[%clk 0:00:29]}  Rb8 {[%clk 0:00:32]} 32. Nc5 {[%clk 0:00:26]}  Rxb5 {[%clk 0:00:22]} 33. Ne6 {[%clk 0:00:23]}  Bf6 {[%clk 0:00:18]} 34. g4 {[%clk 0:00:18]}  Nd6 {[%clk 0:00:17]} 35. Ne3 {[%clk 0:00:16]}  Nc4 {[%clk 0:00:10]} 36. Nc7 {[%clk 0:00:14]}  Nxe3+ {[%clk 0:00:06]} 37. Rxe3 {[%clk 0:00:15]}  Rb2+ {[%clk 0:00:05]} 38. Kf3 {[%clk 0:00:14]}  Bxd4 {[%clk 0:00:06]} 39. Re8+ {[%clk 0:00:13]}  Kh7 {[%clk 0:00:06]} 40. Nxd5 {[%clk 0:00:11]}  Rb3+ {[%clk 0:00:06]} 41. Ke4 {[%clk 0:00:11]}  Bg7 {[%clk 0:00:06]} 42. Re7 {[%clk 0:00:06]}  Rxh3 {[%clk 0:00:05]} 43. Nf6+ {[%clk 0:00:06]}  Kh6 {[%clk 0:00:05]} 44. Ng8+ {[%clk 0:00:06]}  Kh7 {[%clk 0:00:06]} 45. Nf6+ {[%clk 0:00:06]}  Kh6 {[%clk 0:00:07]} 46. Ne8 {[%clk 0:00:06]}  Rh1 {[%clk 0:00:04]} 47. Kf3 {[%clk 0:00:04]}  Bf8 {[%clk 0:00:03]} 48. Rd7 {[%clk 0:00:03]}  Rf1+ {[%clk 0:00:03]} 49. Kg2 {[%clk 0:00:03]}  Rf4 {[%clk 0:00:04]} 50. Kg3 {[%clk 0:00:03]}  Rf1 {[%clk 0:00:02]} 51. Nc7 {[%clk 0:00:02]}  Bg7 {[%clk 0:00:01]} 52. Ne6 {[%clk 0:00:02]}  Be5+ {[%clk 0:00:02]} 53. Kg2 {[%clk 0:00:03]}  Rf6 {[%clk 0:00:02]} 54. Nd8 {[%clk 0:00:02]}  Rd6 {[%clk 0:00:00]} 55. Nf7+ {[%clk 0:00:03]} 1-0

[Event "January 9 Late 2024"]
[Site "https://www.chess.com"]
[Date "2024.01.09"]
[Round "7"]
[White "Paravyan, David"]
[Black "Schroeder, Jan-Christian"]
[Result "1/2-1/2"]
[Board "24"]
[TimeControl "180+1"]
[WhiteFideId "4194985"]
[BlackFideId "24662259"]
[WhiteElo "3014"]
[BlackElo "2844"]
[WhiteTeam "FID"]
[BlackTeam "GER"]
[WhiteClock "0:00:07"]
[BlackClock "0:00:17"]

1. e4 {[%clk 0:03:00]}  e5 {[%clk 0:02:59]} 2. Nf3 {[%clk 0:03:00]}  Nc6 {[%clk 0:03:00]} 3. Bc4 {[%clk 0:03:01]}  Nf6 {[%clk 0:02:59]} 4. d3 {[%clk 0:03:00]}  Bc5 {[%clk 0:02:59]} 5. c3 {[%clk 0:03:00]}  O-O {[%clk 0:02:58]} 6. a4 {[%clk 0:03:00]}  a6 {[%clk 0:02:58]} 7. O-O {[%clk 0:02:58]}  d6 {[%clk 0:02:56]} 8. Nbd2 {[%clk 0:02:57]}  Ba7 {[%clk 0:02:53]} 9. h3 {[%clk 0:02:56]}  Re8 {[%clk 0:02:51]} 10. b4 {[%clk 0:02:53]}  Be6 {[%clk 0:02:51]} 11. Bxe6 {[%clk 0:02:53]}  Rxe6 {[%clk 0:02:52]} 12. Re1 {[%clk 0:02:52]}  d5 {[%clk 0:02:52]} 13. Qc2 {[%clk 0:02:52]}  d4 {[%clk 0:02:47]} 14. Bb2 {[%clk 0:02:42]}  Nh5 {[%clk 0:02:43]} 15. b5 {[%clk 0:02:40]}  dxc3 {[%clk 0:02:31]} 16. Bxc3 {[%clk 0:02:39]}  Nd4 {[%clk 0:02:31]} 17. Bxd4 {[%clk 0:02:39]}  Bxd4 {[%clk 0:02:32]} 18. Nxd4 {[%clk 0:02:39]}  Qxd4 {[%clk 0:02:31]} 19. Nf3 {[%clk 0:02:39]}  Qd7 {[%clk 0:02:31]} 20. Rac1 {[%clk 0:02:34]}  axb5 {[%clk 0:02:17]} 21. axb5 {[%clk 0:02:25]}  Rc8 {[%clk 0:01:47]} 22. g3 {[%clk 0:02:25]}  Qxb5 {[%clk 0:01:40]} 23. d4 {[%clk 0:02:25]}  Qd7 {[%clk 0:01:29]} 24. dxe5 {[%clk 0:02:18]}  Rc6 {[%clk 0:00:55]} 25. Qb3 {[%clk 0:02:01]}  Rxc1 {[%clk 0:00:32]} 26. Rxc1 {[%clk 0:02:02]}  Qxh3 {[%clk 0:00:33]} 27. Ng5 {[%clk 0:01:40]}  Qd7 {[%clk 0:00:30]} 28. e6 {[%clk 0:01:40]}  fxe6 {[%clk 0:00:30]} 29. Nxe6 {[%clk 0:01:39]}  Qf7 {[%clk 0:00:29]} 30. Rc3 {[%clk 0:00:46]}  c6 {[%clk 0:00:27]} 31. Rf3 {[%clk 0:00:43]}  Nf6 {[%clk 0:00:27]} 32. e5 {[%clk 0:00:42]}  Re8 {[%clk 0:00:27]} 33. exf6 {[%clk 0:00:38]}  Rxe6 {[%clk 0:00:27]} 34. fxg7 {[%clk 0:00:15]}  Rf6 {[%clk 0:00:23]} 35. Re3 {[%clk 0:00:05]}  Qxb3 {[%clk 0:00:20]} 36. Rxb3 {[%clk 0:00:06]}  Rf7 {[%clk 0:00:20]} 37. f4 {[%clk 0:00:05]}  Kxg7 {[%clk 0:00:21]} 38. Kg2 {[%clk 0:00:05]}  Rc7 {[%clk 0:00:21]} 39. Rb6 {[%clk 0:00:05]}  c5 {[%clk 0:00:21]} 40. Kf3 {[%clk 0:00:05]}  c4 {[%clk 0:00:21]} 41. Ke2 {[%clk 0:00:05]}  c3 {[%clk 0:00:22]} 42. Kd1 {[%clk 0:00:06]}  c2+ {[%clk 0:00:22]} 43. Kc1 {[%clk 0:00:06]}  h5 {[%clk 0:00:22]} 44. Rb5 {[%clk 0:00:06]}  Kh6 {[%clk 0:00:22]} 45. Rb6+ {[%clk 0:00:06]}  Kg7 {[%clk 0:00:22]} 46. Rb5 {[%clk 0:00:07]}  Kh6 {[%clk 0:00:17]} 47. Rb6+ {[%clk 0:00:07]}  Kg7 {[%clk 0:00:17]} 1/2-1/2

[Event "January 9 Late 2024"]
[Site "https://www.chess.com"]
[Date "2024.01.09"]
[Round "7"]
[White "Gokerkan, Cem Kaan"]
[Black "Svane, Rasmus"]
[Result "1-0"]
[Board "25"]
[TimeControl "180+1"]
[WhiteFideId "6336760"]
[BlackFideId "4657101"]
[WhiteElo "2828"]
[BlackElo "3004"]
[WhiteTeam "TUR"]
[BlackTeam "GER"]
[WhiteClock "0:00:25"]
[BlackClock "0:00:00"]

1. e4 {[%clk 0:03:00]}  c6 {[%clk 0:02:58]} 2. d4 {[%clk 0:03:01]}  d5 {[%clk 0:02:59]} 3. e5 {[%clk 0:03:02]}  Bf5 {[%clk 0:02:59]} 4. h4 {[%clk 0:03:02]}  h5 {[%clk 0:02:59]} 5. c4 {[%clk 0:03:03]}  e6 {[%clk 0:02:59]} 6. Nc3 {[%clk 0:03:04]}  Nd7 {[%clk 0:02:54]} 7. cxd5 {[%clk 0:03:04]}  cxd5 {[%clk 0:02:54]} 8. Bd3 {[%clk 0:03:04]}  Ne7 {[%clk 0:02:46]} 9. Bg5 {[%clk 0:03:03]}  Bxd3 {[%clk 0:02:44]} 10. Qxd3 {[%clk 0:03:04]}  Qb6 {[%clk 0:02:42]} 11. Nf3 {[%clk 0:03:02]}  Nc6 {[%clk 0:02:38]} 12. O-O {[%clk 0:02:57]}  Bb4 {[%clk 0:02:35]} 13. Ne2 {[%clk 0:02:52]}  Be7 {[%clk 0:02:32]} 14. Bxe7 {[%clk 0:02:32]}  Nxe7 {[%clk 0:02:32]} 15. Nf4 {[%clk 0:02:32]}  g6 {[%clk 0:02:31]} 16. Rac1 {[%clk 0:02:27]}  O-O {[%clk 0:02:21]} 17. Rc3 {[%clk 0:02:10]}  Rac8 {[%clk 0:02:19]} 18. Rfc1 {[%clk 0:02:06]}  Qxb2 {[%clk 0:01:42]} 19. Rxc8 {[%clk 0:01:45]}  Rxc8 {[%clk 0:01:42]} 20. Rxc8+ {[%clk 0:01:45]}  Nxc8 {[%clk 0:01:43]} 21. Nxg6 {[%clk 0:01:22]}  Kg7 {[%clk 0:00:38]} 22. Ng5 {[%clk 0:00:40]}  Qc1+ {[%clk 0:00:20]} 23. Kh2 {[%clk 0:00:40]}  fxg6 {[%clk 0:00:20]} 24. Qf3 {[%clk 0:00:38]}  Qxg5 {[%clk 0:00:03]} 25. hxg5 {[%clk 0:00:38]}  Ne7 {[%clk 0:00:03]} 26. Qa3 {[%clk 0:00:37]}  Nc6 {[%clk 0:00:03]} 27. Qd6 {[%clk 0:00:37]}  Nf8 {[%clk 0:00:02]} 28. Qc7+ {[%clk 0:00:35]}  Kg8 {[%clk 0:00:02]} 29. Qxb7 {[%clk 0:00:35]}  Nxd4 {[%clk 0:00:03]} 30. Qxa7 {[%clk 0:00:35]}  Nc6 {[%clk 0:00:02]} 31. Qc7 {[%clk 0:00:34]}  Nb4 {[%clk 0:00:01]} 32. a3 {[%clk 0:00:32]}  Nd3 {[%clk 0:00:01]} 33. a4 {[%clk 0:00:30]}  Nxf2 {[%clk 0:00:02]} 34. a5 {[%clk 0:00:30]}  d4 {[%clk 0:00:02]} 35. a6 {[%clk 0:00:25]}  d3 {[%clk 0:00:00]} 36. Qd6 {[%clk 0:00:25]} 1-0

[Event "January 9 Late 2024"]
[Site "https://www.chess.com"]
[Date "2024.01.09"]
[Round "7"]
[White "Msellek, Ilyass"]
[Black "Carlsen, Magnus"]
[Result "0-1"]
[Board "31"]
[TimeControl "180+1"]
[WhiteFideId "675938"]
[BlackFideId "1503014"]
[WhiteElo "2681"]
[BlackElo "3359"]
[WhiteTeam "MAR"]
[BlackTeam "NOR"]
[WhiteClock "0:00:00"]
[BlackClock "0:01:03"]

1. d4 {[%clk 0:02:58]}  Nf6 {[%clk 0:02:58]} 2. c4 {[%clk 0:02:58]}  b5 {[%clk 0:02:57]} 3. cxb5 {[%clk 0:02:58]}  c5 {[%clk 0:02:56]} 4. b6 {[%clk 0:02:50]}  axb6 {[%clk 0:02:53]} 5. Nf3 {[%clk 0:02:49]}  e6 {[%clk 0:02:53]} 6. Nc3 {[%clk 0:02:47]}  Bb7 {[%clk 0:02:48]} 7. Bf4 {[%clk 0:02:41]}  Bxf3 {[%clk 0:02:45]} 8. exf3 {[%clk 0:02:36]}  cxd4 {[%clk 0:02:46]} 9. Qxd4 {[%clk 0:02:37]}  Nc6 {[%clk 0:02:45]} 10. Qd2 {[%clk 0:02:34]}  Bb4 {[%clk 0:02:38]} 11. Bd6 {[%clk 0:02:25]}  Bxd6 {[%clk 0:02:31]} 12. Qxd6 {[%clk 0:02:26]}  Qe7 {[%clk 0:02:32]} 13. Qd2 {[%clk 0:02:15]}  O-O {[%clk 0:02:23]} 14. Bb5 {[%clk 0:02:15]}  Rfc8 {[%clk 0:02:15]} 15. O-O {[%clk 0:02:14]}  h6 {[%clk 0:02:08]} 16. Rfe1 {[%clk 0:02:04]}  Qc5 {[%clk 0:02:03]} 17. a3 {[%clk 0:01:34]}  Nd4 {[%clk 0:02:00]} 18. Qd3 {[%clk 0:01:30]}  Nxb5 {[%clk 0:01:51]} 19. Nxb5 {[%clk 0:01:22]}  Qc2 {[%clk 0:01:44]} 20. Qd4 {[%clk 0:01:21]}  Rc5 {[%clk 0:01:41]} 21. a4 {[%clk 0:01:09]}  Nd5 {[%clk 0:01:39]} 22. Nd6 {[%clk 0:00:41]}  Rc6 {[%clk 0:01:37]} 23. Ne4 {[%clk 0:00:25]}  Rc4 {[%clk 0:01:36]} 24. Qe5 {[%clk 0:00:25]}  Rcxa4 {[%clk 0:01:31]} 25. Rac1 {[%clk 0:00:23]}  Qb3 {[%clk 0:01:18]} 26. Qd6 {[%clk 0:00:16]}  Qxb2 {[%clk 0:01:13]} 27. Qxd7 {[%clk 0:00:15]}  Ra1 {[%clk 0:01:13]} 28. Rc8+ {[%clk 0:00:09]}  Kh7 {[%clk 0:01:04]} 29. Rf1 {[%clk 0:00:01]}  Rxf1+ {[%clk 0:01:03]} 30. Kxf1 {[%clk 0:00:00]}  Ra1+ {[%clk 0:01:03]} 0-1